bitfinex/quotes_ETHUSD_20250214
["timestamp","ask_amount","ask_price","bid_price","bid_amount"]
[1739556650806,10.94646846,2784.9,2784.8,35.0]
[1739556653110,10.95396846,2784.9,2784.8,35.0]
[1739556656340,10.94646846,2784.9,2784.8,35.0]
[1739556656841,10.93896846,2784.9,2784.8,35.0]
[1739556659249,10.94646846,2784.9,2784.8,35.0]
[1739556659461,3.59165,2784.3,2783.7,3.59227]
[1739556659772,0.61141053,2784.2,2783.7,3.59227]
[1739556659974,9.59314053,2784.2,2783.7,3.59227]
[1739556660178,5.99391053,2784.2,2783.3,1.5883]
[1739556660386,0.55,2783.9,2783.3,1.94713]
[1739556660675,9.03560053,2784.2,2783.8,3.59214]
[1739556660891,5.39,2784.2,2784.1,35.0]
[1739556661530,5.94,2784.2,2784.1,35.0]
[1739556662468,5.39,2784.2,2784.1,38.59182]
[1739556662653,5.39,2784.2,2784.1,35.0]
[1739556663361,5.39,2784.2,2784.1,38.59182]
[1739556663941,5.39,2784.2,2784.1,35.0]
[1739556664142,5.39,2784.2,2784.1,38.59182]
[1739556664535,5.39,2784.2,2784.1,42.21658439]
[1739556665632,0.55,2784.7,2784.4,3.59139]
[1739556665844,0.55,2784.7,2784.2,3.59161]
[1739556666388,0.55,2784.7,2784.6,35.0]
[1739556666893,0.60405937,2784.7,2784.6,35.0]
[1739556667240,1.5631,2785.8,2784.7,1.6339]
[1739556667571,0.04701285,2785.7,2785.6,5.22377]
[1739556668066,3.59726,2785.7,2785.6,35.0]
[1739556668278,3.59053,2785.1,2784.3,1.6339]
[1739556668634,0.59651925,2785.0,2784.3,5.22546]
[1739556668960,0.59651925,2785.0,2784.5,3.59121]
[1739556669144,0.59651925,2785.0,2784.6,3.59115]
[1739556669490,0.04651925,2785.0,2784.9,38.59079]
[1739556669779,3.59025,2785.4,2784.9,36.6339]
[1739556669976,4.14027,2785.3,2784.9,1.6339]
[1739556670369,0.04661383,2785.2,2784.9,1.6339]
[1739556670695,4.14015,2785.4,2784.9,1.6339]
[1739556670842,0.04661162,2785.1,2784.6,3.59116]
[1739556671182,0.59654479,2785.0,2784.5,5.2252]
[1739556671377,0.59654479,2785.0,2784.9,35.0]
[1739556671676,0.04654479,2785.0,2784.9,38.59079]
[1739556672046,0.55,2785.4,2784.9,38.59079]
[1739556672249,0.04654479,2785.0,2784.9,3.59079]
[1739556672476,4.14017,2785.4,2784.7,3.591]
[1739556672665,0.04654479,2785.0,2784.7,3.59093]
[1739556672865,3.59029,2785.3,2784.8,3.59091]
[1739556673066,0.04647795,2784.9,2784.7,7.1819]
[1739556673268,3.59054,2785.1,2784.6,3.59109]
[1739556673449,0.04641111,2784.8,2784.7,3.59105]
[1739556673644,0.04641111,2784.8,2784.7,38.62695624]
[1739556673861,8.98005,2785.5,2784.9,3.59073]
[1739556674057,0.55,2785.4,2784.9,3.59073]
[1739556674262,0.55,2785.4,2784.7,38.59105]
[1739556674263,3.59035,2785.3,2784.7,42.18202]
[1739556674459,0.59681209,2785.4,2784.9,3.59078]
[1739556674664,0.04667845,2785.2,2784.9,3.59078]
[1739556674890,0.04674527,2785.3,2784.9,3.59078]
[1739556675083,3.63705527,2785.3,2784.7,3.59097]
[1739556675289,3.63705527,2785.3,2784.8,3.59089]
[1739556675673,3.63705527,2785.3,2784.5,1.6339]
[1739556675674,3.59086,2784.9,2784.5,1.6339]
[1739556675872,3.59115,2784.7,2784.2,5.22553]
[1739556676077,0.04664384,2784.8,2784.5,3.59129]
[1739556676382,5.39,2784.9,2784.3,3.59153]
[1739556676383,0.04651014,2784.6,2784.3,3.59153]
[1739556676585,0.55,2784.8,2784.4,3.59142]
[1739556676756,4.14095,2784.8,2784.3,3.59148]
[1739556676976,0.55,2784.8,2784.3,3.59148]
[1739556677181,0.55,2784.8,2784.5,3.59129]
[1739556677385,5.39,2784.9,2784.8,3.59092]
[1739556677601,0.04657699,2784.7,2784.5,0.359129]
[1739556677797,0.04657699,2784.7,2784.6,3.59118]
[1739556678114,3.59056,2785.1,2784.5,3.59129]
[1739556678316,3.59056,2785.1,2784.2,1.6339]
[1739556678317,0.55,2785.1,2784.8,3.59089]
[1739556679318,0.55,2785.1,2784.8,3.59085]
[1739556679490,5.39,2785.2,2785.1,3.59053]
[1739556679691,5.39,2785.8,2784.9,2.0]
[1739556679881,3.58951,2785.9,2785.4,3.59012]
[1739556680080,3.58981,2785.7,2785.5,0.22959881]
[1739556680604,3.58957,2785.9,2785.5,0.22959881]
[1739556680801,7.17918,2785.9,2785.5,0.22959881]
[1739556681023,0.55,2785.8,2785.5,0.22959881]
[1739556681207,0.04582227,2785.8,2785.5,3.81953881]
[1739556681512,0.04582227,2785.8,2785.7,3.58976]
[1739556681713,5.39,2786.1,2785.7,3.58976]
[1739556681919,0.04590966,2785.8,2785.5,8.81373]
[1739556682095,0.55,2786.0,2785.6,3.58988]
[1739556682416,4.13939,2786.0,2785.5,5.22388]
[1739556682619,4.13939,2786.0,2785.2,1.6339]
[1739556682620,0.5575,2785.8,2785.2,1.6339]
[1739556682911,0.55,2785.6,2785.1,7.18089]
[1739556683239,0.55,2785.3,2784.9,5.22468]
[1739556683383,0.55,2785.3,2784.9,3.59078]
[1739556683585,3.63437242,2785.2,2784.6,1.6339]
[1739556683903,0.04396242,2785.2,2784.8,3.5909]
[1739556684099,0.04396242,2785.2,2784.9,3.59076]
[1739556684313,10.54306,2785.6,2785.2,3.59031]
[1739556684314,5.39,2785.6,2785.2,3.59031]
[1739556684553,0.04412492,2785.1,2785.0,5.22456]
[1739556684742,0.55,2785.5,2785.2,3.5903]
[1739556685253,0.04412885,2785.4,2784.5,1.6339]
[1739556685455,0.04412885,2785.4,2785.1,3.59046]
[1739556685760,0.55,2785.5,2785.1,3.59044]
[1739556685958,0.55,2785.5,2785.1,7.1809]
[1739556686253,0.55,2785.5,2785.1,3.59044]
[1739556686442,0.04412885,2785.4,2785.1,3.59044]
[1739556686647,0.04412885,2785.4,2785.1,8.723]
[1739556686847,0.04412885,2785.4,2785.1,5.13254]
[1739556687547,0.04412885,2785.4,2785.1,8.72301]
[1739556687748,0.04412885,2785.4,2785.1,5.13254]
[1739556687951,0.04412885,2785.4,2785.0,3.59064]
[1739556688249,0.04412885,2785.4,2785.1,3.59043]
[1739556688449,0.04412885,2785.4,2785.1,7.18088]
[1739556688646,0.04412885,2785.4,2785.1,3.59043]
[1739556689971,0.04412885,2785.4,2785.1,7.18089]
[1739556690152,0.04412885,2785.4,2785.1,3.59043]
[1739556691077,0.04412885,2785.4,2785.1,7.18089]
[1739556691471,0.04412885,2785.4,2785.1,3.59043]
[1739556691909,0.04412885,2785.4,2785.3,5.13237]
[1739556692065,5.39,2786.0,2785.6,3.58987]
[1739556692390,8.97931,2786.1,2785.7,3.58973]
[1739556692682,8.32262395,2786.3,2785.4,3.59014]
[1739556692683,0.73582195,2786.3,2785.4,3.59014]
[1739556692886,3.58881,2786.5,2785.4,3.0358902]
[1739556693091,3.58881,2786.5,2786.0,3.58929]
[1739556693687,3.58881,2786.5,2785.8,3.58956]
[1739556693688,3.589,2786.3,2785.8,3.58956]
[1739556693984,0.55,2786.4,2785.9,3.58943]
[1739556694184,0.72790739,2786.4,2786.0,3.58937]
[1739556694491,0.72275663,2786.6,2786.3,3.58892]
[1739556694687,0.72275663,2786.6,2786.4,3.58881]
[1739556695387,0.55,2786.5,2786.3,7.17783]
[1739556695589,0.55,2786.5,2786.0,3.0]
[1739556695824,1.5679,2786.4,2786.0,3.0]
[1739556696286,0.55,2786.5,2785.8,1.5421]
[1739556696490,0.55,2786.5,2785.8,1.72631]
[1739556696786,0.04545911,2786.4,2785.9,3.0]
[1739556696988,0.04545911,2786.4,2786.0,3.5893]
[1739556697156,2.1365,2786.5,2786.0,3.5893]
[1739556697357,0.04561189,2786.4,2786.0,3.5893]
[1739556697551,0.04561189,2786.4,2785.8,5.13164]
[1739556697552,0.04561189,2786.4,2786.1,0.03588877]
[1739556697804,0.17902009,2787.1,2786.4,3.58884]
[1739556697805,3.76698009,2787.1,2786.4,3.58884]
[1739556698012,3.76698009,2787.1,2786.5,3.62451313]
[1739556698170,3.76698009,2787.1,2786.3,3.58889]
[1739556698171,3.58827,2786.9,2786.3,3.58889]
[1739556698357,0.565,2787.0,2786.2,3.58908]
[1739556698558,0.5575,2786.7,2786.3,3.58896]
[1739556698773,0.5575,2786.7,2786.2,3.58908]
[1739556699108,0.5575,2786.7,2785.9,1.63988784]
[1739556699109,0.55,2786.6,2785.9,1.63988784]
[1739556699289,4.13911,2786.2,2785.5,5.19395]
[1739556699491,0.55,2786.0,2785.5,3.58994]
[1739556699740,0.55,2786.0,2785.6,3.58982]
[1739556699939,0.55,2786.2,2785.7,3.58975]
[1739556700139,4.13916,2786.2,2785.7,3.58975]
[1739556700342,0.55,2786.0,2785.5,3.58992]
[1739556700539,0.04466775,2785.9,2785.7,3.58975]
[1739556701252,3.59004,2785.5,2784.9,3.5907]
[1739556701546,3.59028,2785.3,2784.8,3.5909]
[1739556701839,0.59417365,2785.4,2784.7,5.19497]
[1739556701840,0.0439236,2785.2,2785.0,3.59059]
[1739556702208,3.76694246,2785.8,2785.2,3.59033]
[1739556702437,1.5865,2785.9,2785.6,3.58979]
[1739556702613,1.5875,2786.2,2785.8,3.58963]
[1739556702946,4.75256808,2786.5,2785.7,1.6232]
[1739556703168,0.0075,2786.3,2785.4,5.21326]
[1739556703394,3.58951,2785.9,2785.4,5.21326]
[1739556703663,5.94,2786.0,2785.6,3.58979]
[1739556703960,5.94,2786.0,2785.4,5.21326]
[1739556704138,5.94,2786.0,2785.4,1.6232]
[1739556704461,0.04414018,2785.9,2785.7,3.58974]
[1739556704637,0.04414018,2785.9,2785.8,3.58963]
[1739556704827,0.04414018,2785.9,2785.7,3.58973]
[1739556705044,0.04414018,2785.9,2785.5,3.58994]
[1739556705211,0.04414018,2785.9,2785.7,3.58966]
[1739556705407,0.04414018,2785.9,2785.8,3.58963]
[1739556707928,1.5875,2786.5,2786.0,3.58931]
[1739556710849,0.55,2786.2,2785.7,3.58967]
[1739556711048,4.13938,2786.0,2785.4,5.21325]
[1739556711548,0.04448586,2785.9,2785.6,3.58979]
[1739556711916,0.04448586,2785.9,2785.7,3.58975]
[1739556712232,0.04448586,2785.9,2785.4,1.6232]
[1739556712233,0.04448586,2785.9,2785.8,3.58963]
[1739556712556,0.55,2786.1,2785.8,3.58963]
[1739556712921,0.04447989,2786.0,2785.6,7.17965]
[1739556713121,0.04447989,2786.0,2785.4,1.6232]
[1739556713341,0.04447989,2786.0,2785.9,3.5895]
[1739556713928,5.39,2786.2,2785.8,3.58962]
[1739556714128,0.04454668,2786.1,2786.0,3.58934]
[1739556715054,0.04454668,2786.1,2786.0,5.22873021]
[1739556715378,6.68e-06,2786.1,2786.0,12.7867802]
[1739556715517,5.39,2787.3,2787.0,3.58796]
[1739556715848,5.11567,2787.7,2787.0,3.58796]
[1739556715849,0.04210577,2787.2,2787.0,3.58796]
[1739556716356,0.04210577,2787.2,2787.1,3.58795]
[1739556716357,0.71644125,2787.2,2787.1,3.58795]
[1739556717355,3.587,2787.9,2787.1,3.58795]
[1739556717657,4.69453063,2788.0,2787.3,3.58768]
[1739556717658,0.05009699,2787.8,2787.3,3.58768]
[1739556718383,0.04259699,2787.8,2787.4,1.6035]
[1739556718525,2.99277999,2788.3,2787.1,1.6035]
[1739556718526,0.72340257,2787.4,2787.1,1.6035]
[1739556718725,0.55,2787.6,2787.0,3.88706]
[1739556718926,0.55,2787.6,2786.9,3.58814]
[1739556718927,0.04310343,2787.3,2786.9,3.58814]
[1739556719169,0.55,2787.4,2786.7,3.58836]
[1739556719373,0.0430367,2787.2,2786.7,3.58836]
[1739556719578,3.63088343,2787.3,2786.7,3.58836]
[1739556719823,0.55,2787.4,2786.5,4.6035]
[1739556719824,0.0430367,2787.2,2786.5,4.6035]
[1739556720060,0.0430367,2787.2,2786.9,3.58817]
[1739556720264,0.55,2787.4,2786.9,3.58817]
[1739556720572,0.70323568,2787.3,2786.6,3.58852]
[1739556720777,0.55,2787.2,2786.6,3.58852]
[1739556720988,0.55,2786.8,2786.4,3.58876]
[1739556721130,0.55,2786.8,2786.5,3.58861]
[1739556721335,0.55,2786.8,2786.7,3.58847]
[1739556721629,1.5284,2786.9,2786.5,3.58861]
[1739556721947,1.5284,2786.9,2786.6,3.58855]
[1739556722141,3.58748,2787.5,2786.8,1.6035]
[1739556722344,1.5284,2787.6,2787.1,3.58784]
[1739556722937,0.72834355,2787.4,2786.9,3.58812]
[1739556723275,0.72834355,2787.4,2786.8,1.6035]
[1739556723427,0.72834355,2787.4,2787.3,3.5877]
[1739556723751,1.5284,2787.2,2786.8,3.58822]
[1739556724082,1.5284,2787.2,2787.0,3.58808]
[1739556724360,0.55,2787.1,2786.5,0.299]
[1739556724570,0.55,2787.1,2786.5,3.58865]
[1739556724571,4.13803,2787.1,2786.5,3.58865]
[1739556724747,7.72609,2787.1,2786.5,3.58865]
[1739556724955,0.55,2787.1,2786.6,3.58857]
[1739556725137,0.55,2787.1,2786.8,3.58831]
[1739556725543,0.55,2787.1,2786.3,0.299]
[1739556725750,0.55,2787.1,2786.7,3.58846]
[1739556725927,0.55,2786.9,2786.7,7.17683]
[1739556726129,0.55,2786.9,2786.7,3.58837]
[1739556726330,0.04104595,2786.8,2786.7,3.58837]
[1739556727562,0.04104231,2786.8,2786.2,3.58899]
[1739556727867,0.55,2786.7,2786.3,3.58891]
[1739556728162,0.5575,2786.8,2786.3,3.58891]
[1739556728351,0.04007953,2786.6,2786.2,3.58899]
[1739556728663,0.04005648,2786.5,2786.4,3.58879]
[1739556729063,0.5575,2786.8,2786.4,3.58879]
[1739556729261,0.5575,2786.8,2786.2,3.58901]
[1739556729462,0.55,2786.4,2785.9,3.5895]
[1739556729701,1.587,2786.3,2786.0,3.58931]
[1739556729833,1.62672631,2786.3,2785.9,3.5894]
[1739556730162,0.03972631,2786.3,2786.2,3.58911]
[1739556730368,0.03972631,2786.3,2786.2,5.17009856]
[1739556730565,0.03972631,2786.3,2786.2,5.88792802]
[1739556730868,0.55,2786.7,2786.4,3.58881]
[1739556731031,0.0075,2786.6,2786.2,3.58908]
[1739556731235,0.55,2786.5,2786.2,3.58908]
[1739556731864,0.03966928,2786.4,2786.2,3.58908]
[1739556732078,0.55,2786.3,2785.6,1.5451]
[1739556732368,0.55,2786.3,2785.7,3.58976]
[1739556732553,0.03952481,2786.2,2786.1,3.58914]
[1739556732949,5.39,2786.3,2785.8,3.58963]
[1739556733143,0.0075,2785.9,2785.6,3.58978]
[1739556733504,0.0075,2785.6,2785.1,3.59046]
[1739556733657,2.137,2785.5,2785.1,3.59046]
[1739556733966,2.17590427,2785.5,2785.1,7.18091]
[1739556734154,2.17590427,2785.5,2785.2,1.5451]
[1739556734155,0.58890427,2785.5,2785.2,1.5451]
[1739556734353,0.03890427,2785.5,2785.2,0.44032602]
[1739556734607,0.55,2785.6,2785.2,3.5904]
[1739556734813,0.55,2785.6,2784.9,1.8441]
[1739556734814,0.58883745,2785.4,2785.0,3.59061]
[1739556735111,0.0075,2785.3,2784.9,3.59078]
[1739556735257,0.0075,2785.0,2784.7,3.59104]
[1739556735457,5.39,2785.0,2784.8,3.59086]
[1739556735803,0.03833206,2784.9,2784.7,3.59104]
[1739556735958,0.55,2784.8,2784.7,3.59104]
[1739556736153,0.58821055,2784.8,2784.7,3.59104]
[1739556737209,0.58821055,2784.8,2784.5,7.1824]
[1739556737590,0.58821055,2784.8,2784.5,3.59118]
[1739556737888,0.58821055,2784.8,2784.3,3.59151]
[1739556738201,0.58821055,2784.8,2784.3,3.59148]
[1739556738360,0.5575,2784.7,2784.2,3.59168]
[1739556738692,0.03781128,2784.6,2784.2,3.59168]
[1739556739158,0.03781128,2784.6,2784.4,3.59136]
[1739556739361,0.03781128,2784.6,2784.2,3.59159]
[1739556739584,0.03781128,2784.6,2784.4,3.59139]
[1739556740088,0.03781128,2784.6,2784.5,3.5913]
[1739556740991,0.0075,2784.8,2784.3,3.59156]
[1739556741195,0.5575,2784.6,2784.3,3.59156]
[1739556741378,0.5575,2784.6,2784.4,3.59135]
[1739556741585,0.03714986,2784.5,2784.3,3.59149]
[1739556741892,0.03714986,2784.5,2784.0,3.59193]
[1739556741893,0.5575,2784.4,2784.0,3.59193]
[1739556742212,5.9475,2784.4,2784.0,3.59187]
[1739556742361,0.55,2784.2,2783.6,1.5493]
[1739556742563,0.0368246,2784.3,2784.1,3.59182]
[1739556742564,0.55,2784.3,2784.1,3.59182]
[1739556742875,0.55,2784.3,2784.2,3.59169]
[1739556743485,0.55,2784.3,2784.1,3.59182]
[1739556744009,0.55,2784.3,2784.0,3.59193]
[1739556744010,0.03681798,2784.2,2784.0,3.59193]
[1739556744511,0.55,2784.3,2784.0,3.59193]
[1739556744728,1.2359511,2784.1,2784.0,3.59195]
[1739556744953,1.1992,2784.1,2784.0,3.59195]
[1739556745110,1.79341098,2784.1,2784.0,3.59195]
[1739556745312,0.55,2784.0,2783.9,3.59206]
[1739556745647,0.5866441,2784.0,2783.9,3.59206]
[1739556745851,0.0366441,2784.0,2783.9,3.59206]
[1739556746423,6.5892,2784.4,2783.9,0.718424]
[1739556746627,5.39,2784.4,2784.3,3.59156]
[1739556747413,0.55,2784.3,2783.5,1.2503]
[1739556747614,0.55,2784.3,2784.0,3.59186]
[1739556747814,0.55,2784.3,2784.2,35.0]
[1739556747815,0.5575,2784.3,2784.2,35.0]
[1739556748431,4.14906,2784.3,2784.2,35.0]
[1739556748831,5.955,2784.3,2784.2,35.0]
[1739556749144,9.54656,2784.3,2784.2,35.0]
[1739556749549,10.74576,2784.3,2784.2,35.0]
[1739556750544,7.1542,2784.3,2784.2,35.0]
[1739556750735,10.74576,2784.3,2784.2,35.0]
[1739556751244,10.78244427,2784.3,2784.2,35.0]
[1739556751744,7.18338427,2784.3,2784.2,35.0]
[1739556752744,10.77494427,2784.3,2784.2,35.0]
[1739556753042,5.97668427,2784.3,2784.2,35.0]
[1739556753545,5.97668427,2784.3,2784.2,38.59169]
[1739556753846,5.39,2784.3,2784.2,38.59169]
[1739556754044,5.39,2784.8,2784.5,3.5912]
[1739556754420,0.0075,2784.7,2784.3,3.62740185]
[1739556754647,5.39,2784.8,2784.3,3.62740185]
[1739556754648,0.55,2784.5,2784.3,3.59149]
[1739556754811,0.55,2784.5,2784.1,3.59175]
[1739556755016,0.03624399,2784.4,2784.1,3.59175]
[1739556755247,0.58624399,2784.4,2784.3,35.0]
[1739556756234,4.18517399,2784.4,2784.3,35.0]
[1739556757319,0.59374399,2784.4,2784.3,35.0]
[1739556758325,0.60124399,2784.4,2784.3,35.0]
[1739556758672,5.43687399,2784.4,2784.3,35.0]
[1739556760129,1.84544399,2784.4,2784.3,35.0]
[1739556760330,5.43687399,2784.4,2784.3,35.0]
[1739556760851,10.82687399,2784.4,2784.3,35.0]
[1739556761431,7.23544399,2784.4,2784.3,35.0]
[1739556762926,10.82687399,2784.4,2784.3,35.0]
[1739556763131,7.23544399,2784.4,2784.3,35.0]
[1739556764352,3.59218,2783.9,2782.9,4.77505]
[1739556764654,1.8017,2783.7,2783.3,7.18555]
[1739556765150,0.03791895,2783.6,2783.3,3.59276]
[1739556765453,0.58791895,2783.6,2783.5,38.59259]
[1739556765755,0.03791895,2783.6,2783.5,41.43497928]
[1739556765953,0.03791895,2783.6,2783.5,42.61667928]
[1739556766156,5.39,2783.8,2783.7,3.59234]
[1739556766738,5.97785084,2783.8,2783.7,38.59234]
[1739556767335,5.42785084,2783.8,2783.7,38.59234]
[1739556767535,5.42785084,2783.8,2783.7,42.21710439]
[1739556767861,5.39,2783.8,2783.7,42.21710439]
[1739556769026,0.72766185,2784.4,2784.3,3.59156]
[1739556769230,0.72766185,2784.4,2784.2,3.59168]
[1739556769428,6.6342,2784.7,2784.1,1.1817]
[1739556769757,5.39,2784.7,2784.6,38.59118]
[1739556769949,6.6342,2785.0,2784.6,35.0]
[1739556770151,5.39,2785.9,2784.9,4.77249]
[1739556770356,5.39,2786.0,2785.5,3.59]
[1739556770560,5.39,2786.0,2785.8,35.0]
[1739556770767,8.97946,2786.0,2785.8,35.0]
[1739556770967,0.0075,2785.9,2785.8,35.0]
[1739556771168,3.597,2785.9,2785.8,35.0]
[1739556771480,6.58474698,2785.9,2785.8,35.0]
[1739556772078,0.0075,2785.9,2785.8,35.0]
[1739556772285,5.39,2786.0,2785.8,38.58963]
[1739556773108,5.39,2786.0,2785.9,3.5895]
[1739556773448,5.39,2786.0,2785.6,3.58981]
[1739556773687,0.55,2785.7,2785.4,3.59009]
[1739556773887,0.55,2785.7,2785.4,3.59006]
[1739556774072,0.55,2785.7,2785.6,35.0]
[1739556774270,0.5575,2785.9,2785.7,3.58973]
[1739556774581,0.55,2785.9,2785.6,3.58989]
[1739556774881,0.55,2785.9,2785.2,4.80907]
[1739556774882,0.55,2785.9,2785.4,3.59003]
[1739556775183,0.55,2785.5,2785.2,7.18063]
[1739556775554,0.55,2785.5,2785.4,35.0]
[1739556775752,5.94,2785.5,2785.4,38.59014]
[1739556775952,5.94,2785.5,2785.4,35.0]
[1739556776185,5.94,2785.5,2785.4,38.59014]
[1739556776484,5.94,2785.5,2785.4,35.0]
[1739556776947,5.94,2785.5,2785.4,38.59014]
[1739556777145,5.39,2785.5,2785.4,38.59014]
[1739556777350,5.39,2785.9,2785.7,3.58963]
[1739556777584,5.39,2785.9,2785.6,3.58979]
[1739556777886,5.39,2785.9,2785.8,3.58963]
[1739556778076,5.94,2785.9,2785.8,3.58963]
[1739556778274,5.94,2785.9,2785.8,38.58963]
[1739556778463,5.94,2785.9,2785.8,35.0]
[1739556780598,9.537,2785.9,2785.8,35.0]
[1739556780799,5.955,2785.9,2785.8,35.0]
[1739556780981,5.39,2785.9,2785.8,35.0]
[1739556781297,5.94,2785.9,2785.8,35.0]
[1739556781864,5.39,2785.9,2785.8,43.43309439]
[1739556782333,3.58836,2786.8,2786.2,3.58911]
[1739556782334,5.39,2786.3,2786.2,3.58911]
[1739556782470,0.0075,2786.7,2786.3,3.58887]
[1739556782471,5.39,2786.6,2786.3,3.58887]
[1739556782665,0.55,2786.5,2786.3,3.58887]
[1739556782971,0.05279009,2786.5,2786.4,38.58886]
[1739556783626,0.05279009,2786.5,2786.4,35.0]
[1739556784130,0.60279009,2786.5,2786.4,38.58886]
[1739556784499,0.05279009,2786.5,2786.4,43.43232439]
[1739556784683,3.11e-06,2786.5,2786.4,45.43232439]
[1739556784882,5.39,2787.1,2787.0,3.58808]
[1739556785136,5.39,2787.6,2787.2,3.58783]
[1739556785320,5.39,2787.6,2787.1,4.80657]
[1739556785632,8.98481,2787.6,2787.5,35.0]
[1739556785829,5.3975,2787.6,2787.5,35.0]
[1739556786315,5.9475,2787.6,2787.5,35.0]
[1739556786813,9.53481,2787.6,2787.5,35.0]
[1739556787033,1.1417,2787.5,2786.6,3.58853]
[1739556787178,0.5575,2787.0,2786.4,3.58878]
[1739556787380,0.55,2786.8,2786.6,3.5886]
[1739556787585,0.55,2786.8,2786.4,3.58875]
[1739556787831,5.94,2786.7,2786.6,3.5886]
[1739556788134,5.94,2786.7,2786.6,38.5886]
[1739556789686,5.94,2786.7,2786.6,35.0]
[1739556789909,5.39,2786.7,2786.6,38.5886]
[1739556791767,5.39,2786.7,2786.6,42.68943099]
[1739556791971,5.39,2786.7,2786.6,43.90973099]
[1739556793555,0.55,2786.9,2786.8,3.58834]
[1739556794667,0.5575,2786.9,2786.8,35.0]
[1739556794897,1.6992,2786.9,2786.8,35.0]
[1739556795237,0.5575,2786.9,2786.8,35.0]
[1739556795628,0.55,2786.9,2786.8,38.58834]
[1739556796028,0.55,2786.9,2786.8,35.0]
[1739556796479,1.6917,2786.9,2786.8,35.0]
[1739556799456,7.0817,2786.9,2786.8,35.0]
[1739556799756,5.94,2786.9,2786.8,35.0]
[1739556800333,9.53571,2786.9,2786.8,35.0]
[1739556803863,12.5248981,2786.9,2786.8,35.0]
[1739556804027,13.7053981,2786.9,2786.8,35.0]
[1739556804833,10.72371,2786.9,2786.8,35.0]
[1739556805890,9.53571,2786.9,2786.8,35.0]
[1739556806067,5.9475,2786.9,2786.8,35.0]
[1739556806274,5.39,2786.9,2786.8,35.0]
[1739556806881,5.94,2786.9,2786.8,35.0]
[1739556807091,5.94,2786.9,2784.3,13.0]
[1739556807092,1.1805,2786.6,2784.3,13.0]
[1739556807391,0.5575,2785.2,2784.6,3.59107]
[1739556807691,1.1805,2785.8,2785.1,35.0]
[1739556807895,3.58924,2786.1,2784.8,1.2443]
[1739556807896,3.58924,2786.1,2785.3,3.59021]
[1739556808092,4.76974,2786.1,2785.3,4.83451]
[1739556808292,0.55,2785.8,2785.3,4.83451]
[1739556808493,0.17959904,2785.6,2785.3,5.676989]
[1739556808672,1.1805,2786.1,2785.5,3.58991]
[1739556808992,1.1805,2786.1,2785.3,2.086779]
[1739556808993,0.17606518,2786.3,2785.9,35.0]
[1739556809196,0.17606518,2786.3,2785.9,39.83378]
[1739556809359,1.1805,2786.7,2786.1,3.58922]
[1739556809559,3.5885,2786.7,2786.1,3.58922]
[1739556809783,3.58836,2786.8,2786.1,4.431517]
[1739556809990,3.58836,2786.8,2786.6,35.0]
[1739556810172,3.58836,2786.8,2785.9,1.5433]
[1739556810173,3.58847,2786.7,2785.9,1.2443]
[1739556810373,3.58869,2786.6,2785.9,1.2443]
[1739556810600,1.35743796,2787.0,2785.9,1.757586]
[1739556810799,3.5883,2786.9,2786.3,3.58888]
[1739556811095,3.5883,2786.9,2786.1,3.58915]
[1739556811096,3.58856,2786.7,2786.1,3.58915]
[1739556811295,0.55,2786.8,2786.2,3.58899]
[1739556811496,0.55,2786.8,2786.1,3.58915]
[1739556811669,4.13835,2786.8,2786.2,0.358915]
[1739556811863,3.58849,2786.7,2786.1,3.58913]
[1739556812061,3.58888,2786.4,2785.9,1.2443]
[1739556812368,4.1386,2786.6,2785.9,1.2443]
[1739556812570,4.1386,2786.6,2785.9,4.83371]
[1739556813101,0.55,2786.4,2785.9,4.83371]
[1739556813267,4.13885,2786.5,2785.9,4.83371]
[1739556813699,0.55,2786.3,2785.9,4.83371]
[1739556814390,4.13899,2786.3,2785.9,1.2443]
[1739556814579,0.55,2786.3,2785.9,1.2443]
[1739556814896,3.58921,2786.2,2785.9,1.2443]
[1739556815105,0.55,2786.0,2785.5,3.58993]
[1739556815405,0.55,2786.0,2785.7,4.83405]
[1739556815876,3.58906,2786.3,2785.7,4.83405]
[1739556815877,0.55,2786.1,2785.7,4.83405]
[1739556816406,3.58944,2786.0,2785.5,1.1727]
[1739556816612,4.13927,2786.1,2785.6,3.58988]
[1739556816776,0.55,2786.1,2785.7,3.58974]
[1739556817410,0.55,2786.1,2785.5,1.1727]
[1739556817612,0.55,2786.1,2785.6,3.58981]
[1739556817810,0.72606896,2786.3,2785.7,3.58967]
[1739556818009,4.31505896,2786.3,2785.8,3.58955]
[1739556819108,0.55,2786.1,2785.7,3.58967]
[1739556820227,5.94,2786.1,2785.7,3.58967]
[1739556821111,5.94,2786.1,2785.7,7.17936]
[1739556821307,5.94,2786.1,2785.8,3.5896]
[1739556821512,5.94,2786.1,2785.7,7.17935]
[1739556821712,5.94,2786.1,2785.8,3.58962]
[1739556822044,5.94,2786.1,2785.5,1.1727]
[1739556822212,5.94,2786.1,2785.6,3.58978]
[1739556823343,5.94,2786.1,2785.7,3.58975]
[1739556824024,5.94,2786.1,2785.7,7.1795]
[1739556824336,5.94,2786.1,2785.7,3.58975]
[1739556824520,5.94,2786.1,2785.8,3.5896]
[1739556825999,0.55,2785.9,2785.3,6.59018]
[1739556826352,0.55,2785.9,2784.6,10.04876452]